[Event "Titled Tuesday Blitz March 28 Early 2023"]
[White "Rostomyan, Mikayel"]
[Black "Firouzja, Alireza"]
[WhiteFideId "13313754"]
[BlackFideId "12573981"]
[WhiteElo "2009"]
[BlackElo "2904"]
[Result "0-1"]
[Round "04"]
[TimeControl "180+2"]
[Date "2023.03.28"]
[WhiteClock "0:00:05"]
[BlackClock "0:01:58"]

1. d4 {[%clk 0:03:00]}  Nf6 {[%clk 0:02:59]} 2. Nf3 {[%clk 0:03:00]}  g6 {[%clk 0:02:54]} 3. c4 {[%clk 0:02:58]}  Bg7 {[%clk 0:02:53]} 4. g3 {[%clk 0:02:58]}  O-O {[%clk 0:02:53]} 5. Bg2 {[%clk 0:02:58]}  d6 {[%clk 0:02:54]} 6. O-O {[%clk 0:02:57]}  Nbd7 {[%clk 0:02:41]} 7. Nc3 {[%clk 0:02:57]}  e5 {[%clk 0:02:41]} 8. dxe5 {[%clk 0:02:51]}  dxe5 {[%clk 0:02:42]} 9. Qc2 {[%clk 0:02:43]}  Re8 {[%clk 0:02:41]} 10. Rd1 {[%clk 0:02:38]}  h6 {[%clk 0:02:30]} 11. b3 {[%clk 0:02:33]}  e4 {[%clk 0:02:29]} 12. Nd4 {[%clk 0:02:30]}  Qe7 {[%clk 0:02:28]} 13. Bb2 {[%clk 0:02:25]}  e3 {[%clk 0:02:24]} 14. f4 {[%clk 0:02:11]}  c6 {[%clk 0:02:24]} 15. Nf3 {[%clk 0:01:27]}  Ng4 {[%clk 0:02:23]} 16. a4 {[%clk 0:01:20]}  Nc5 {[%clk 0:02:17]} 17. Nh4 {[%clk 0:01:09]}  Nf2 {[%clk 0:02:13]} 18. Rf1 {[%clk 0:01:00]}  Rd8 {[%clk 0:02:13]} 19. b4 {[%clk 0:00:58]}  Rd2 {[%clk 0:02:08]} 20. Qb1 {[%clk 0:00:50]}  Nb3 {[%clk 0:02:08]} 21. Ra3 {[%clk 0:00:50]}  Nd4 {[%clk 0:02:00]} 22. Nf3 {[%clk 0:00:42]}  Nxe2+ {[%clk 0:01:57]} 23. Nxe2 {[%clk 0:00:37]}  Rxb2 {[%clk 0:01:58]} 24. Qe1 {[%clk 0:00:32]}  Bf5 {[%clk 0:01:58]} 25. Ned4 {[%clk 0:00:28]}  Bd3 {[%clk 0:01:58]} 26. Ne5 {[%clk 0:00:17]}  Bxf1 {[%clk 0:01:57]} 27. Bxf1 {[%clk 0:00:09]}  Bxe5 {[%clk 0:01:57]} 28. Rxe3 {[%clk 0:00:08]}  Bxd4 {[%clk 0:01:57]} 29. Rxe7 {[%clk 0:00:05]}  Ng4+ {[%clk 0:01:58]} 0-1


[Site "https://www.chess.com"]

[Event "Titled Tuesday Blitz March 28 Early 2023"]
[White "Hardaway, Brewington"]
[Black "Svane, Rasmus"]
[WhiteFideId "30941849"]
[BlackFideId "4657101"]
[WhiteElo "2159"]
[BlackElo "2597"]
[Result "0-1"]
[Round "04"]
[TimeControl "180+2"]
[Date "2023.03.28"]
[WhiteClock "0:00:04"]
[BlackClock "0:00:38"]

1. e4 {[%clk 0:03:00]}  c6 {[%clk 0:03:00]} 2. c4 {[%clk 0:03:00]}  d5 {[%clk 0:03:01]} 3. cxd5 {[%clk 0:03:01]}  cxd5 {[%clk 0:03:01]} 4. exd5 {[%clk 0:03:01]}  Nf6 {[%clk 0:03:02]} 5. Nc3 {[%clk 0:03:02]}  Nxd5 {[%clk 0:03:01]} 6. d4 {[%clk 0:03:02]}  g6 {[%clk 0:02:59]} 7. Nf3 {[%clk 0:03:02]}  Bg7 {[%clk 0:02:59]} 8. Bc4 {[%clk 0:03:01]}  Nb6 {[%clk 0:02:58]} 9. Bb3 {[%clk 0:03:01]}  O-O {[%clk 0:02:59]} 10. O-O {[%clk 0:03:01]}  Nc6 {[%clk 0:02:59]} 11. d5 {[%clk 0:02:46]}  Na5 {[%clk 0:02:59]} 12. Be3 {[%clk 0:02:46]}  Nbc4 {[%clk 0:02:47]} 13. Bd4 {[%clk 0:02:42]}  Bxd4 {[%clk 0:02:09]} 14. Qxd4 {[%clk 0:02:41]}  Qb6 {[%clk 0:02:06]} 15. Rfe1 {[%clk 0:02:20]}  Qxd4 {[%clk 0:01:55]} 16. Nxd4 {[%clk 0:02:20]}  Bd7 {[%clk 0:01:29]} 17. Rxe7 {[%clk 0:02:19]}  Rad8 {[%clk 0:01:29]} 18. Ne4 {[%clk 0:02:05]}  Bc8 {[%clk 0:01:19]} 19. Rc1 {[%clk 0:01:29]}  Nb6 {[%clk 0:00:58]} 20. Rc5 {[%clk 0:01:08]}  Nxb3 {[%clk 0:00:57]} 21. axb3 {[%clk 0:01:07]}  Kg7 {[%clk 0:00:53]} 22. d6 {[%clk 0:00:57]}  Rfe8 {[%clk 0:00:47]} 23. Rcc7 {[%clk 0:00:53]}  Rxe7 {[%clk 0:00:44]} 24. Rxe7 {[%clk 0:00:52]}  Nd5 {[%clk 0:00:37]} 25. Re5 {[%clk 0:00:48]}  Nf6 {[%clk 0:00:38]} 26. Nc3 {[%clk 0:00:19]}  Rxd6 {[%clk 0:00:36]} 27. Ndb5 {[%clk 0:00:20]}  Rd2 {[%clk 0:00:33]} 28. Nxa7 {[%clk 0:00:14]}  Bd7 {[%clk 0:00:34]} 29. h3 {[%clk 0:00:10]}  Rxb2 {[%clk 0:00:34]} 30. Nab5 {[%clk 0:00:08]}  Rxb3 {[%clk 0:00:34]} 31. g4 {[%clk 0:00:05]}  Bc6 {[%clk 0:00:34]} 32. g5 {[%clk 0:00:04]}  Nd7 {[%clk 0:00:35]} 33. Re7 {[%clk 0:00:03]}  Bxb5 {[%clk 0:00:34]} 34. Nxb5 {[%clk 0:00:03]}  Rxb5 {[%clk 0:00:35]} 35. Rxd7 {[%clk 0:00:04]}  Rxg5+ {[%clk 0:00:36]} 36. Kf1 {[%clk 0:00:04]}  b5 {[%clk 0:00:36]} 37. Rb7 {[%clk 0:00:04]}  Rf5 {[%clk 0:00:37]} 38. Ke2 {[%clk 0:00:05]}  Kh6 {[%clk 0:00:37]} 39. Ke3 {[%clk 0:00:05]}  Kh5 {[%clk 0:00:37]} 40. Rb8 {[%clk 0:00:03]}  Kh4 {[%clk 0:00:38]} 41. f4 {[%clk 0:00:03]}  Kxh3 {[%clk 0:00:38]} 42. Rh8 {[%clk 0:00:04]}  h5 {[%clk 0:00:38]} 0-1


[Site "https://www.chess.com"]

[Event "Titled Tuesday Blitz March 28 Early 2023"]
[White "Ismagilov, Damir"]
[Black "Vidit, Santosh Gujrathi"]
[WhiteFideId "34199982"]
[BlackFideId "5029465"]
[WhiteElo "2078"]
[BlackElo "2651"]
[Result "0-1"]
[Round "04"]
[TimeControl "180+2"]
[Date "2023.03.28"]
[WhiteClock "0:00:52"]
[BlackClock "0:01:08"]

1. d4 {[%clk 0:03:00]}  g6 {[%clk 0:03:00]} 2. Bf4 {[%clk 0:03:00]}  Bg7 {[%clk 0:03:00]} 3. e3 {[%clk 0:03:01]}  d6 {[%clk 0:03:00]} 4. Nf3 {[%clk 0:03:01]}  Nf6 {[%clk 0:03:00]} 5. c4 {[%clk 0:03:00]}  Nh5 {[%clk 0:03:00]} 6. Bg5 {[%clk 0:03:00]}  h6 {[%clk 0:03:00]} 7. Bh4 {[%clk 0:03:01]}  g5 {[%clk 0:03:00]} 8. Bg3 {[%clk 0:03:01]}  c5 {[%clk 0:02:58]} 9. Nc3 {[%clk 0:03:00]}  cxd4 {[%clk 0:02:54]} 10. exd4 {[%clk 0:03:00]}  Nxg3 {[%clk 0:02:25]} 11. hxg3 {[%clk 0:03:00]}  g4 {[%clk 0:02:20]} 12. Nh4 {[%clk 0:02:52]}  Nc6 {[%clk 0:02:20]} 13. d5 {[%clk 0:02:46]}  Ne5 {[%clk 0:02:20]} 14. Bd3 {[%clk 0:02:36]}  Qb6 {[%clk 0:02:20]} 15. O-O {[%clk 0:02:23]}  O-O {[%clk 0:02:13]} 16. Bf5 {[%clk 0:02:12]}  Qxb2 {[%clk 0:02:10]} 17. Nb5 {[%clk 0:02:02]}  Nxc4 {[%clk 0:01:42]} 18. Qxg4 {[%clk 0:01:37]}  Qxb5 {[%clk 0:01:28]} 19. Bxc8 {[%clk 0:01:16]}  Ne5 {[%clk 0:01:28]} 20. Rab1 {[%clk 0:00:59]}  Nxg4 {[%clk 0:01:16]} 21. Rxb5 {[%clk 0:00:58]}  Rfxc8 {[%clk 0:01:17]} 22. Nf5 {[%clk 0:00:58]}  Rc7 {[%clk 0:01:10]} 23. Re1 {[%clk 0:00:56]}  Kf8 {[%clk 0:01:09]} 24. Re4 {[%clk 0:00:52]}  Rc1+ {[%clk 0:01:08]} 0-1


[Site "https://www.chess.com"]

[Event "Titled Tuesday Blitz March 28 Early 2023"]
[White "Sochacki, Christophe"]
[Black "Nguyen, Ngoc Truong Son"]
[WhiteFideId "662569"]
[BlackFideId "12401110"]
[WhiteElo "2474"]
[BlackElo "2571"]
[Result "1-0"]
[Round "04"]
[TimeControl "180+2"]
[Date "2023.03.28"]
[WhiteClock "0:00:03"]
[BlackClock "0:00:06"]

1. b3 {[%clk 0:03:00]}  d5 {[%clk 0:02:58]} 2. Nf3 {[%clk 0:02:59]}  c5 {[%clk 0:02:59]} 3. e3 {[%clk 0:02:58]}  Nc6 {[%clk 0:02:59]} 4. Bb2 {[%clk 0:02:59]}  Nf6 {[%clk 0:02:54]} 5. Bb5 {[%clk 0:02:58]}  Bd7 {[%clk 0:02:54]} 6. O-O {[%clk 0:02:53]}  e6 {[%clk 0:02:47]} 7. c4 {[%clk 0:02:36]}  a6 {[%clk 0:02:42]} 8. Bxc6 {[%clk 0:02:36]}  Bxc6 {[%clk 0:02:43]} 9. Ne5 {[%clk 0:02:28]}  Qc7 {[%clk 0:02:43]} 10. f4 {[%clk 0:02:13]}  Be7 {[%clk 0:02:38]} 11. d3 {[%clk 0:02:10]}  Nd7 {[%clk 0:02:30]} 12. Nxc6 {[%clk 0:02:06]}  Qxc6 {[%clk 0:02:31]} 13. cxd5 {[%clk 0:02:04]}  exd5 {[%clk 0:02:31]} 14. Bxg7 {[%clk 0:02:01]}  Rg8 {[%clk 0:02:30]} 15. Bb2 {[%clk 0:02:01]}  Qg6 {[%clk 0:02:02]} 16. Qe2 {[%clk 0:01:41]}  f5 {[%clk 0:01:58]} 17. Nc3 {[%clk 0:01:30]}  Nf6 {[%clk 0:01:54]} 18. Qf3 {[%clk 0:01:07]}  O-O-O {[%clk 0:01:46]} 19. Na4 {[%clk 0:01:04]}  Ng4 {[%clk 0:01:37]} 20. h3 {[%clk 0:00:57]}  Nxe3 {[%clk 0:01:36]} 21. Rf2 {[%clk 0:00:46]}  Qg3 {[%clk 0:01:24]} 22. Be5 {[%clk 0:00:39]}  b5 {[%clk 0:01:19]} 23. Nxc5 {[%clk 0:00:30]}  Bxc5 {[%clk 0:01:16]} 24. Qxg3 {[%clk 0:00:27]}  Rxg3 {[%clk 0:01:15]} 25. Rc1 {[%clk 0:00:28]}  Nc4 {[%clk 0:01:14]} 26. d4 {[%clk 0:00:29]}  Ba3 {[%clk 0:01:03]} 27. Rcc2 {[%clk 0:00:26]}  Kb7 {[%clk 0:01:00]} 28. bxc4 {[%clk 0:00:26]}  dxc4 {[%clk 0:01:01]} 29. Kh2 {[%clk 0:00:25]}  Rdg8 {[%clk 0:00:39]} 30. d5 {[%clk 0:00:24]}  Rd3 {[%clk 0:00:34]} 31. Rfd2 {[%clk 0:00:21]}  Rd8 {[%clk 0:00:26]} 32. Rxd3 {[%clk 0:00:04]}  cxd3 {[%clk 0:00:27]} 33. Rd2 {[%clk 0:00:02]}  Rxd5 {[%clk 0:00:26]} 34. g4 {[%clk 0:00:03]}  fxg4 {[%clk 0:00:23]} 35. hxg4 {[%clk 0:00:04]}  Bc1 {[%clk 0:00:20]} 36. Rd1 {[%clk 0:00:03]}  d2 {[%clk 0:00:19]} 37. Kg3 {[%clk 0:00:02]}  Rd3+ {[%clk 0:00:17]} 38. Kf2 {[%clk 0:00:02]}  Kc6 {[%clk 0:00:17]} 39. f5 {[%clk 0:00:03]}  Kd5 {[%clk 0:00:18]} 40. Ba1 {[%clk 0:00:02]}  Ke4 {[%clk 0:00:17]} 41. f6 {[%clk 0:00:02]}  Rf3+ {[%clk 0:00:17]} 42. Ke2 {[%clk 0:00:02]}  Rh3 {[%clk 0:00:13]} 43. g5 {[%clk 0:00:02]}  Rh2+ {[%clk 0:00:12]} 44. Kf1 {[%clk 0:00:03]}  Kf3 {[%clk 0:00:12]} 45. Kg1 {[%clk 0:00:03]}  Rg2+ {[%clk 0:00:12]} 46. Kh1 {[%clk 0:00:03]}  Re2 {[%clk 0:00:12]} 47. f7 {[%clk 0:00:03]}  Re1+ {[%clk 0:00:06]} 48. Kh2 {[%clk 0:00:04]}  Ke2 {[%clk 0:00:06]} 49. f8=Q {[%clk 0:00:03]}  Kxd1 {[%clk 0:00:06]} 50. Qf3+ {[%clk 0:00:03]}  Kc2 {[%clk 0:00:06]} 51. Qb3# {[%clk 0:00:03]} 1-0


[Site "https://www.chess.com"]

[Event "Titled Tuesday Blitz March 28 Early 2023"]
[White "Vaibhav Jayant Raut"]
[Black "Anton Guijarro, David"]
[WhiteFideId "5089034"]
[BlackFideId "2285525"]
[WhiteElo "2156"]
[BlackElo "2618"]
[Result "0-1"]
[Round "04"]
[TimeControl "180+2"]
[Date "2023.03.28"]
[WhiteClock "0:00:01"]
[BlackClock "0:00:20"]

1. d4 {[%clk 0:03:00]}  Nf6 {[%clk 0:02:59]} 2. Nf3 {[%clk 0:03:00]}  b6 {[%clk 0:02:59]} 3. Bf4 {[%clk 0:03:00]}  Bb7 {[%clk 0:02:59]} 4. e3 {[%clk 0:03:00]}  h6 {[%clk 0:02:58]} 5. h3 {[%clk 0:03:01]}  e6 {[%clk 0:02:58]} 6. Nbd2 {[%clk 0:03:01]}  Bd6 {[%clk 0:02:59]} 7. Bxd6 {[%clk 0:02:58]}  cxd6 {[%clk 0:02:59]} 8. c3 {[%clk 0:02:57]}  O-O {[%clk 0:02:57]} 9. Bd3 {[%clk 0:02:57]}  d5 {[%clk 0:02:58]} 10. O-O {[%clk 0:02:57]}  Ne4 {[%clk 0:02:54]} 11. Qc2 {[%clk 0:02:41]}  f5 {[%clk 0:02:54]} 12. Ne5 {[%clk 0:02:37]}  d6 {[%clk 0:02:49]} 13. Ng6 {[%clk 0:02:36]}  Rf6 {[%clk 0:02:48]} 14. Nf4 {[%clk 0:02:37]}  e5 {[%clk 0:02:44]} 15. dxe5 {[%clk 0:02:31]}  dxe5 {[%clk 0:02:44]} 16. Ne2 {[%clk 0:02:32]}  Rg6 {[%clk 0:02:33]} 17. Rad1 {[%clk 0:02:23]}  Qg5 {[%clk 0:02:03]} 18. g3 {[%clk 0:02:21]}  Qh5 {[%clk 0:02:03]} 19. Kh2 {[%clk 0:02:04]}  Kh7 {[%clk 0:01:41]} 20. f3 {[%clk 0:01:49]}  Nd7 {[%clk 0:01:20]} 21. fxe4 {[%clk 0:00:40]}  fxe4 {[%clk 0:01:21]} 22. Nxe4 {[%clk 0:00:35]}  dxe4 {[%clk 0:01:18]} 23. Bc4 {[%clk 0:00:33]}  Nf6 {[%clk 0:01:16]} 24. Kg2 {[%clk 0:00:16]}  Bc8 {[%clk 0:01:02]} 25. Ng1 {[%clk 0:00:15]}  Bg4 {[%clk 0:00:46]} 26. Rxf6 {[%clk 0:00:08]}  gxf6 {[%clk 0:00:22]} 27. hxg4 {[%clk 0:00:03]}  Qxg4 {[%clk 0:00:23]} 28. Qf2 {[%clk 0:00:02]}  Qxd1 {[%clk 0:00:22]} 29. Qf5 {[%clk 0:00:01]}  Qg4 {[%clk 0:00:20]} 30. Qxg4 {[%clk 0:00:01]}  Rxg4 {[%clk 0:00:21]} 31. Be6 {[%clk 0:00:01]}  Rg5 {[%clk 0:00:20]} 0-1


[Site "https://www.chess.com"]

[Event "Titled Tuesday Blitz March 28 Early 2023"]
[White "Daneshvar, Bardiya"]
[Black "Godzwon, Iwo"]
[WhiteFideId "12576468"]
[BlackFideId "21802483"]
[WhiteElo "2468"]
[BlackElo "2284"]
[Result "1-0"]
[Round "04"]
[TimeControl "180+2"]
[Date "2023.03.28"]
[WhiteClock "0:00:48"]
[BlackClock "0:00:20"]

1. b3 {[%clk 0:03:00]}  b6 {[%clk 0:02:50]} 2. e4 {[%clk 0:03:00]}  Bb7 {[%clk 0:02:49]} 3. Nc3 {[%clk 0:03:01]}  e5 {[%clk 0:02:47]} 4. Nf3 {[%clk 0:03:00]}  Nc6 {[%clk 0:02:42]} 5. Bb2 {[%clk 0:03:00]}  Nf6 {[%clk 0:02:43]} 6. Bc4 {[%clk 0:02:59]}  Be7 {[%clk 0:02:32]} 7. O-O {[%clk 0:02:58]}  O-O {[%clk 0:02:32]} 8. Re1 {[%clk 0:02:57]}  Re8 {[%clk 0:02:32]} 9. Nd5 {[%clk 0:02:56]}  Bf8 {[%clk 0:02:29]} 10. Nxf6+ {[%clk 0:02:56]}  Qxf6 {[%clk 0:02:29]} 11. Bd5 {[%clk 0:02:57]}  d6 {[%clk 0:02:26]} 12. d4 {[%clk 0:02:54]}  Na5 {[%clk 0:02:05]} 13. Bxb7 {[%clk 0:02:15]}  Nxb7 {[%clk 0:02:05]} 14. d5 {[%clk 0:02:13]}  a5 {[%clk 0:02:02]} 15. c4 {[%clk 0:02:11]}  Nc5 {[%clk 0:01:55]} 16. Qe2 {[%clk 0:02:08]}  Qg6 {[%clk 0:01:55]} 17. Nh4 {[%clk 0:02:06]}  Qg5 {[%clk 0:01:53]} 18. g3 {[%clk 0:02:04]}  g6 {[%clk 0:01:47]} 19. Bc1 {[%clk 0:02:03]}  Qe7 {[%clk 0:01:44]} 20. Qc2 {[%clk 0:02:02]}  Bg7 {[%clk 0:01:44]} 21. Be3 {[%clk 0:02:02]}  Nd7 {[%clk 0:01:26]} 22. a3 {[%clk 0:02:02]}  Ra6 {[%clk 0:01:08]} 23. f3 {[%clk 0:01:57]}  Bf6 {[%clk 0:01:06]} 24. Ng2 {[%clk 0:01:56]}  Bg5 {[%clk 0:01:06]} 25. Bf2 {[%clk 0:01:55]}  h5 {[%clk 0:01:07]} 26. Qd3 {[%clk 0:01:49]}  Nc5 {[%clk 0:01:06]} 27. Bxc5 {[%clk 0:01:49]}  bxc5 {[%clk 0:01:07]} 28. Reb1 {[%clk 0:01:44]}  Rb8 {[%clk 0:01:04]} 29. h4 {[%clk 0:01:43]}  Bh6 {[%clk 0:01:04]} 30. Rb2 {[%clk 0:01:43]}  Rab6 {[%clk 0:01:01]} 31. Rab1 {[%clk 0:01:43]}  Qd7 {[%clk 0:00:58]} 32. Qc3 {[%clk 0:01:43]}  Ra8 {[%clk 0:00:51]} 33. Kh2 {[%clk 0:01:42]}  Qc8 {[%clk 0:00:44]} 34. b4 {[%clk 0:01:38]}  axb4 {[%clk 0:00:41]} 35. axb4 {[%clk 0:01:39]}  cxb4 {[%clk 0:00:40]} 36. Rxb4 {[%clk 0:01:38]}  Rxb4 {[%clk 0:00:41]} 37. Qxb4 {[%clk 0:01:35]}  Ra7 {[%clk 0:00:36]} 38. c5 {[%clk 0:01:32]}  dxc5 {[%clk 0:00:20]} 39. Qxc5 {[%clk 0:01:33]}  Qa6 {[%clk 0:00:20]} 40. Rb8+ {[%clk 0:01:30]}  Kh7 {[%clk 0:00:21]} 41. Qe7 {[%clk 0:01:29]}  c6 {[%clk 0:00:21]} 42. Qe8 {[%clk 0:01:12]}  Bg7 {[%clk 0:00:21]} 43. g4 {[%clk 0:00:51]}  hxg4 {[%clk 0:00:19]} 44. fxg4 {[%clk 0:00:52]}  cxd5 {[%clk 0:00:20]} 45. g5 {[%clk 0:00:48]} 1-0


[Site "https://www.chess.com"]

[Event "Titled Tuesday Blitz March 28 Early 2023"]
[White "Gontcharov, Vladislav"]
[Black "Makhnev, Denis"]
[WhiteFideId "4123492"]
[BlackFideId "13707647"]
[WhiteElo "2470"]
[BlackElo "2525"]
[Result "0-1"]
[Round "04"]
[TimeControl "180+2"]
[Date "2023.03.28"]
[WhiteClock "0:00:02"]
[BlackClock "0:00:07"]

1. d4 {[%clk 0:03:00]}  Nf6 {[%clk 0:02:56]} 2. c4 {[%clk 0:03:00]}  e6 {[%clk 0:02:56]} 3. Nc3 {[%clk 0:03:00]}  Bb4 {[%clk 0:02:57]} 4. e3 {[%clk 0:03:00]}  O-O {[%clk 0:02:57]} 5. Bd3 {[%clk 0:03:00]}  b6 {[%clk 0:02:57]} 6. Ne2 {[%clk 0:02:57]}  Bb7 {[%clk 0:02:54]} 7. O-O {[%clk 0:02:57]}  d5 {[%clk 0:02:53]} 8. cxd5 {[%clk 0:02:49]}  exd5 {[%clk 0:02:54]} 9. Ng3 {[%clk 0:02:49]}  Re8 {[%clk 0:02:50]} 10. Qc2 {[%clk 0:02:45]}  Bf8 {[%clk 0:02:41]} 11. a3 {[%clk 0:02:39]}  c5 {[%clk 0:02:40]} 12. dxc5 {[%clk 0:02:33]}  bxc5 {[%clk 0:02:40]} 13. b3 {[%clk 0:02:33]}  Nbd7 {[%clk 0:02:38]} 14. Bb2 {[%clk 0:02:31]}  Rc8 {[%clk 0:02:36]} 15. Rfd1 {[%clk 0:02:28]}  a6 {[%clk 0:02:32]} 16. Bf5 {[%clk 0:02:22]}  g6 {[%clk 0:02:20]} 17. Bh3 {[%clk 0:02:21]}  Bg7 {[%clk 0:02:20]} 18. Rd2 {[%clk 0:02:09]}  Qc7 {[%clk 0:02:16]} 19. Rad1 {[%clk 0:02:08]}  Rcd8 {[%clk 0:02:07]} 20. Na4 {[%clk 0:02:02]}  h5 {[%clk 0:01:37]} 21. b4 {[%clk 0:01:49]}  c4 {[%clk 0:01:34]} 22. Ne2 {[%clk 0:01:37]}  Ne5 {[%clk 0:01:28]} 23. Bxe5 {[%clk 0:01:27]}  Rxe5 {[%clk 0:01:25]} 24. Nc5 {[%clk 0:01:25]}  Bc8 {[%clk 0:01:23]} 25. Bxc8 {[%clk 0:01:21]}  Qxc8 {[%clk 0:01:24]} 26. e4 {[%clk 0:01:05]}  Bh6 {[%clk 0:01:05]} 27. f4 {[%clk 0:00:54]}  Ree8 {[%clk 0:01:05]} 28. exd5 {[%clk 0:00:53]}  Ng4 {[%clk 0:01:03]} 29. Qxc4 {[%clk 0:00:26]}  Ne3 {[%clk 0:01:03]} 30. Qc1 {[%clk 0:00:26]}  Nxd1 {[%clk 0:01:03]} 31. Qxd1 {[%clk 0:00:26]}  a5 {[%clk 0:00:56]} 32. d6 {[%clk 0:00:26]}  axb4 {[%clk 0:00:56]} 33. axb4 {[%clk 0:00:24]}  Qb8 {[%clk 0:00:57]} 34. d7 {[%clk 0:00:16]}  Re7 {[%clk 0:00:57]} 35. Rd4 {[%clk 0:00:15]}  Bg7 {[%clk 0:00:55]} 36. Rc4 {[%clk 0:00:15]}  Qb5 {[%clk 0:00:54]} 37. Qc2 {[%clk 0:00:14]}  h4 {[%clk 0:00:46]} 38. h3 {[%clk 0:00:14]}  Qb6 {[%clk 0:00:38]} 39. Kh2 {[%clk 0:00:14]}  Qc6 {[%clk 0:00:29]} 40. Qd3 {[%clk 0:00:12]}  Bh6 {[%clk 0:00:23]} 41. Nc3 {[%clk 0:00:11]}  Re1 {[%clk 0:00:19]} 42. Nd5 {[%clk 0:00:10]}  Qa8 {[%clk 0:00:12]} 43. Re4 {[%clk 0:00:09]}  Qa1 {[%clk 0:00:10]} 44. Rxe1 {[%clk 0:00:09]}  Qxe1 {[%clk 0:00:11]} 45. b5 {[%clk 0:00:03]}  Qc1 {[%clk 0:00:09]} 46. Qd4 {[%clk 0:00:03]}  Bg7 {[%clk 0:00:08]} 47. Ne7+ {[%clk 0:00:02]}  Kh8 {[%clk 0:00:07]} 0-1


[Site "https://www.chess.com"]

[Event "Titled Tuesday Blitz March 28 Early 2023"]
[White "Sielecki, Christof"]
[Black "Sjugirov, Sanan"]
[WhiteFideId "4620437"]
[BlackFideId "4189302"]
[WhiteElo "2443"]
[BlackElo "2569"]
[Result "0-1"]
[Round "04"]
[TimeControl "180+2"]
[Date "2023.03.28"]
[WhiteClock "0:00:47"]
[BlackClock "0:02:32"]

1. e4 {[%clk 0:03:00]}  e5 {[%clk 0:02:55]} 2. Nf3 {[%clk 0:03:00]}  d6 {[%clk 0:02:55]} 3. d4 {[%clk 0:02:58]}  exd4 {[%clk 0:02:56]} 4. Nxd4 {[%clk 0:02:58]}  Nf6 {[%clk 0:02:56]} 5. Nc3 {[%clk 0:02:58]}  Be7 {[%clk 0:02:57]} 6. g3 {[%clk 0:02:58]}  O-O {[%clk 0:02:57]} 7. Bg2 {[%clk 0:02:58]}  Re8 {[%clk 0:02:57]} 8. O-O {[%clk 0:02:57]}  Nbd7 {[%clk 0:02:56]} 9. h3 {[%clk 0:02:56]}  Bf8 {[%clk 0:02:55]} 10. Re1 {[%clk 0:02:52]}  Nc5 {[%clk 0:02:54]} 11. a4 {[%clk 0:02:45]}  c6 {[%clk 0:02:51]} 12. g4 {[%clk 0:02:42]}  a5 {[%clk 0:02:47]} 13. g5 {[%clk 0:02:30]}  Nfd7 {[%clk 0:02:47]} 14. Nf5 {[%clk 0:02:24]}  Ne5 {[%clk 0:02:44]} 15. f4 {[%clk 0:02:20]}  Ng6 {[%clk 0:02:42]} 16. Be3 {[%clk 0:01:57]}  d5 {[%clk 0:02:41]} 17. Ng3 {[%clk 0:01:40]}  d4 {[%clk 0:02:41]} 18. Qxd4 {[%clk 0:01:29]}  Qxd4 {[%clk 0:02:41]} 19. Bxd4 {[%clk 0:01:29]}  Nxf4 {[%clk 0:02:42]} 20. h4 {[%clk 0:01:22]}  Bg4 {[%clk 0:02:40]} 21. Be3 {[%clk 0:01:01]}  Ng6 {[%clk 0:02:37]} 22. h5 {[%clk 0:00:57]}  Ne5 {[%clk 0:02:38]} 23. b3 {[%clk 0:00:50]}  Ne6 {[%clk 0:02:33]} 24. Kf2 {[%clk 0:00:47]}  Bb4 {[%clk 0:02:32]} 0-1


[Site "https://www.chess.com"]

[Event "Titled Tuesday Blitz March 28 Early 2023"]
[White "Dominguez Perez, Leinier"]
[Black "Khumalo, Keith"]
[WhiteFideId "3503240"]
[BlackFideId "14319470"]
[WhiteElo "2647"]
[BlackElo "2056"]
[Result "1-0"]
[Round "04"]
[TimeControl "180+2"]
[Date "2023.03.28"]
[WhiteClock "0:02:07"]
[BlackClock "0:01:16"]

1. e4 {[%clk 0:03:00]}  c5 {[%clk 0:02:51]} 2. Nf3 {[%clk 0:03:01]}  d6 {[%clk 0:02:50]} 3. d4 {[%clk 0:03:01]}  cxd4 {[%clk 0:02:51]} 4. Nxd4 {[%clk 0:03:02]}  Nf6 {[%clk 0:02:51]} 5. Nc3 {[%clk 0:03:03]}  g6 {[%clk 0:02:52]} 6. Be3 {[%clk 0:03:03]}  Bg7 {[%clk 0:02:52]} 7. f3 {[%clk 0:03:03]}  O-O {[%clk 0:02:53]} 8. Qd2 {[%clk 0:03:04]}  Nc6 {[%clk 0:02:54]} 9. O-O-O {[%clk 0:03:05]}  d5 {[%clk 0:02:54]} 10. exd5 {[%clk 0:03:05]}  Nxd5 {[%clk 0:02:55]} 11. Nxc6 {[%clk 0:03:06]}  bxc6 {[%clk 0:02:55]} 12. Bd4 {[%clk 0:03:07]}  e5 {[%clk 0:02:55]} 13. Bc5 {[%clk 0:03:06]}  Be6 {[%clk 0:02:56]} 14. Ne4 {[%clk 0:03:06]}  Re8 {[%clk 0:02:46]} 15. h4 {[%clk 0:03:06]}  Qc7 {[%clk 0:02:45]} 16. h5 {[%clk 0:03:05]}  Red8 {[%clk 0:02:34]} 17. hxg6 {[%clk 0:03:04]}  hxg6 {[%clk 0:02:34]} 18. Qg5 {[%clk 0:03:04]}  f5 {[%clk 0:01:56]} 19. Qxg6 {[%clk 0:02:59]}  fxe4 {[%clk 0:01:35]} 20. Qxe6+ {[%clk 0:02:57]}  Qf7 {[%clk 0:01:36]} 21. Qxf7+ {[%clk 0:02:55]}  Kxf7 {[%clk 0:01:37]} 22. fxe4 {[%clk 0:02:55]}  Nf4 {[%clk 0:01:36]} 23. Bc4+ {[%clk 0:02:49]}  Kg6 {[%clk 0:01:35]} 24. Rxd8 {[%clk 0:02:50]}  Rxd8 {[%clk 0:01:34]} 25. Bxa7 {[%clk 0:02:50]}  Bh6 {[%clk 0:01:33]} 26. Kb1 {[%clk 0:02:47]}  Nxg2 {[%clk 0:01:31]} 27. Rg1 {[%clk 0:02:40]}  Kh7 {[%clk 0:01:31]} 28. a4 {[%clk 0:02:36]}  Ne3 {[%clk 0:01:25]} 29. Bb3 {[%clk 0:02:14]}  Bf4 {[%clk 0:01:16]} 30. a5 {[%clk 0:02:07]} 1-0


[Site "https://www.chess.com"]